[Event "FIDE Candidates 2026"]
[White "Nakamura,Hikaru"]
[Black "Esipenko,Andrey"]
[Site "Agios Georgios Pegeia"]
[Round "9.4"]
[Annotator "TA"]
[Result "1/2-1/2"]
[Date "2026.04.08"]
[WhiteElo "2810"]
[BlackElo "2698"]
[PlyCount "182"]
[TimeControl "60"]

{[%evp 12,182,35,22,25,25,25,30,34,34,35,28,35,22,24,18,20,23,29,25,29,29,26,22,27,22,28,23,37,23,44,23,38,37,56,56,58,58,58,58,104,58,58,58,58,58,58,58,89,58,58,58,58,58,58,58,104,58,58,0,58,58,58,29,58,58,79,79,106,106,137,89,130,93,165,18,18,18,18,18,18,18,18,2,2,2,2,16,16,0,0,0,0,0,0,0,0,0,0,0,0,0,0,0,0,0,0,0,0,0,0,0,0,0,0,0,0,0,0,0,0,0,0,0,0,0,0,0,0,0,0,0,0,0,0,0,0,0,0,0,0,0,0,0,0,0,0,0,0,0,0,0,0,0,0,0,0,0,0,0,0,0,0,0,0,0,0,0,0,0,0,0,0]} 1. c4 {[%emt 0:0:3]} e6 {[%emt 0:0:7]} 2. Nc3 {[%emt 0:0:9]} d5 {[%emt 0:0:7]} 3. d4 {[%emt 0:0:4]} Be7 {[%emt 0:0:5]} 4. Nf3 {[%emt 0:0:15]} Nf6 {[%emt 0:0:8]} 5. Bg5 {[%emt 0:0:14]} O-O {[%emt 0:0:45]} 6. e3 {[%emt 0:0:15]} c5 {[%emt 0:0:23]} 7. cxd5 {[%emt 0:4:48]} Nxd5 {[%emt 0:0:15] D55: Queen's Gambit Declined: 4 Bg5 Be7: Lines without ...h6 and 6...h6 7 Bxf6.} 8. Bxe7 {[%emt 0:0:36]} Qxe7 {[%emt 0:0:6]} 9. Nxd5 {[%emt 0:1:7]} exd5 {[%emt 0:0:2] White has an edge.} 10. dxc5 {[%emt 0:0:8]} Qxc5 {[%emt 0:0:10]} 11. Be2 {[%emt 0:8:57]} Nc6 {[%emt 0:0:33]} 12. O-O {[%emt 0:1:38]} Qb6 {[%emt 0:0:53]} 13. Qd2 {[%emt 0:5:8]} Rd8 $146 {[%emt 0:0:7]} ({Predecessor:} 13... Be6 14. Rfd1 Rac8 15. h3 Rc7 16. b3 Rfc8 17. Rac1 a5 18. Ng5 Nb4 19. Rxc7 Rxc7 {1-0 Ulko,J (2476)-Golovanov,V (1966) Moscow Victory Day op 2011 (1)} )14. Rfd1 {[%emt 0:2:20]} Bg4 {[%emt 0:0:11]} 15. h3 {[%emt 0:6:20]} Bxf3 {[%emt 0:2:15]} 16. Bxf3 {[%emt 0:1:7]} d4 {[%emt 0:0:57]} 17. Bxc6 {[%emt 0:1:45]} dxe3 {[%emt 0:0:10]} 18. Qxe3 {[%emt 0:0:2]} bxc6 {[%emt 0:0:16]} 19. Qc3 {[%emt 0:2:20]} h6 {[%emt 0:3:33]} 20. Rac1 {[%emt 0:0:46]} c5 {[%emt 0:46:12]} 21. b3 {[%emt 0:2:54]} (21. Qxc5 $2 Rxd1+ 22. Kh2 Rxc1 23. Qxc1 Qxf2 $19 )Qa6 {[%emt 0:0:11]} 22. Rd2 {[%emt 0:2:13]} Rxd2 {[%emt 0:13:59]} 23. Qxd2 $14 {[%emt 0:0:24][%mdl 4096] Endgame KQR-KQR} Qb6 {[%emt 0:0:7]} 24. Qe3 {[%emt 0:6:39]} Rc8 {[%emt 0:15:26]} 25. Rc4 {[%emt 0:8:21]} a5 {[%emt 0:1:12]} (25... Qg6 $14 {should be considered.} )26. g3 {[%emt 0:7:33]} (26. a3 $16 )h5 {[%emt 0:9:37]} 27. h4 {[%emt 0:14:35]} g6 {[%emt 0:2:19]} 28. Qc3 {[%emt 0:0:4]} Kh7 {[%emt 0:3:14]} 29. Qe5 {[%emt 0:18:32]} Qc7 {[%emt 0:4:53]} 30. Qe3 {[%emt 0:1:36] White is much more active.} Qd6 {[%emt 0:1:46]} 31. Kh2 {[%emt 0:0:19]} Kg8 {[%emt 0:1:49]} 32. Qc3 {[%emt 0:4:7]} Qb6 {[%emt 0:0:31]} 33. Qc2 {[%emt 0:5:36]} Kg7 {[%emt 0:0:51] [#]} (33... Rc6 $14 )34. Qe2 {[%emt 0:2:29]} (34. a3 $1 $16 )Kg8 {[%emt 0:0:35]} 35. Qe3 {[%emt 0:0:27]} (35. Qe1 $14 )Kg7 {[%emt 0:1:43]} (35... Qd6 $11 )36. Ra4 {[%emt 0:3:22]} Kg8 {[%emt 0:0:32]} 37. Re4 {[%emt 0:0:23]} Kg7 {[%emt 0:0:25]} 38. Rf4 {[%emt 0:0:23]} Qc7 {[%emt 0:1:44]} 39. Ra4 {[%emt 0:0:18]} Kg8 {[%emt 0:0:18] [#]} 40. Qc3 $1 {[%emt 0:0:0]} Qb6 {[%emt 0:0:0]} 41. Rxa5 {[%emt 0:6:34]} ({White should try} 41. Qxa5 Qxa5 42. Rxa5 )c4 {[%emt 0:1:39]} 42. Kg1 {[%emt 0:2:51]} ({And not} 42. bxc4 Qxf2+ 43. Kh3 Kh7 $19 )Qc6 {[%emt 0:7:11]} (42... Rd8 $16 {was called for.} 43. bxc4 Rd1+ 44. Kg2 Qb7+ 45. f3 (45. Qf3 $2 Rg1+ 46. Kxg1 Qxf3 $19 )Rb1 )43. Re5 {[%emt 0:2:49]} (43. Qxc4 $18 Qxc4 44. bxc4 Rxc4 45. Ra3 )cxb3 $11 {[%emt 0:4:17] The position is equal.} 44. Qxc6 {[%emt 0:0:3]} Rxc6 {[%emt 0:0:6]} 45. axb3 {[%emt 0:0:3] KR-KR. White is a pawn up.} Rb6 {[%emt 0:2:53]} 46. Re3 {[%emt 0:0:24]} f6 {[%emt 0:0:56]} 47. f4 {[%emt 0:3:56]} Kf7 {[%emt 0:4:26]} 48. Kf2 {[%emt 0:9:8]} g5 {[%emt 0:0:20]} 49. fxg5 {[%emt 0:0:6]} fxg5 {[%emt 0:0:5]} 50. hxg5 {[%emt 0:0:4]} Kg6 {[%emt 0:1:29]} 51. Ke2 {[%emt 0:0:1]} Kxg5 {[%emt 0:0:28]} 52. Kd2 {[%emt 0:0:3]} Rb8 $1 {[%emt 0:1:48]} 53. Kc3 {[%emt 0:0:1]} Rc8+ {[%emt 0:1:18]} 54. Kb2 {[%emt 0:2:8] and b4 would now be decisive} Rb8 {[%emt 0:0:32]} 55. Re7 {[%emt 0:0:2]} Kg4 {[%emt 0:6:23]} 56. Rg7+ {[%emt 0:3:53]} Kf5 $1 {[%emt 0:0:8]} 57. Ka2 {[%emt 0:1:22]} Ra8+ {[%emt 0:0:10]} 58. Kb1 {[%emt 0:0:1]} Rc8 {[%emt 0:1:22]} 59. Kb2 {[%emt 0:0:22]} Rb8 {[%emt 0:0:13]} 60. Rd7 {[%emt 0:1:28]} Kg4 {[%emt 0:0:28]} 61. Rd5 {[%emt 0:3:48]} Rh8 {[%emt 0:0:45]} 62. Rd3 {[%emt 0:0:4]} Rb8 {[%emt 0:0:5]} 63. Kc3 {[%emt 0:1:16]} Rc8+ {[%emt 0:0:13]} 64. Kd2 {[%emt 0:0:13]} Rb8 {[%emt 0:0:16]} 65. Ke2 {[%emt 0:0:5]} Rb4 {[%emt 0:1:2]} 66. Rc3 {[%emt 0:0:3]} Rb8 {[%emt 0:1:3]} 67. Kf2 {[%emt 0:0:12]} Kg5 {[%emt 0:1:1]} 68. Rd3 {[%emt 0:0:54]} Rb7 {[%emt 0:0:37]} 69. Kf3 {[%emt 0:1:5]} Rb8 {[%emt 0:0:22]} 70. Ke4 {[%emt 0:0:53]} Kg4 {[%emt 0:0:22]} 71. Rc3 {[%emt 0:0:8]} Re8+ {[%emt 0:0:54]} 72. Kd5 {[%emt 0:0:5]} Rd8+ {[%emt 0:0:12]} 73. Ke5 {[%emt 0:0:20]} Rb8 {[%emt 0:1:49]} 74. Kd6 {[%emt 0:1:9]} Kh3 {[%emt 0:0:46]} 75. Kd5 {[%emt 0:1:6]} Kg4 {[%emt 0:0:25]} 76. Re3 {[%emt 0:0:4]} Kh3 {[%emt 0:1:24]} 77. Kc4 {[%emt 0:1:33]} Rc8+ {[%emt 0:0:6]} 78. Kd3 {[%emt 0:0:15]} Rb8 {[%emt 0:0:29]} 79. Kc3 {[%emt 0:1:51]} (79. Kc4 $5 Rc8+ $8 80. Kd3 $11 )Rc8+ {[%emt 0:0:5]} 80. Kb2 {[%emt 0:0:5]} Rb8 {[%emt 0:0:7]} 81. Re5 {[%emt 0:0:14]} Kg4 $1 {[%emt 0:0:18]} 82. Rc5 {[%emt 0:0:7]} Rh8 {[%emt 0:0:19]} 83. Rc3 {[%emt 0:0:4]} Rb8 {[%emt 0:0:7]} 84. Rd3 {[%emt 0:2:1]} Kh3 {[%emt 0:0:32]} 85. Kc3 {[%emt 0:0:36]} Rc8+ $1 {[%emt 0:0:8]} 86. Kd2 {[%emt 0:0:1]} Rb8 {[%emt 0:0:8]} 87. Ke2 {[%emt 0:0:2]} Kg4 {[%emt 0:0:23]} 88. Kf2 {[%emt 0:0:1]} Kg5 {[%emt 0:0:33]} 89. Kg2 {[%emt 0:1:49]} Rb7 {[%emt 0:0:28]} 90. Kf3 {[%emt 0:0:38]} Rb8 {[%emt 0:0:11]} 91. Rc3 {[%emt 0:0:3]} Rf8+ {[%emt 0:1:5] Weighted Error Value: White=0.12 (very precise) /Black=0.11 (very precise)   Mistake:       	White=5     	Black=4      Inaccurate:     	White=2     	Black=4      OK:         	White=26    	Black=25     Best:        	---       	Black=6      Strong:       	White=1     	Black=4} 1/2-1/2

[Event "FIDE Candidates 2026"]
[White "Sindarov,Javokhir"]
[Black "Praggnanandhaa R"]
[Site "Agios Georgios Pegeia"]
[Round "10.1"]
[Annotator "TA"]
[Result "1-0"]
[Date "2026.04.09"]
[WhiteElo "2745"]
[BlackElo "2741"]
[PlyCount "105"]
[TimeControl "60"]

{[%evp 12,105,22,26,14,17,14,0,11,-22,0,-6,0,-27,-29,-7,0,-11,0,0,0,0,0,0,0,0,18,-7,0,0,0,0,52,52,168,160,180,178,170,172,189,188,173,171,216,230,255,233,235,163,228,217,283,283,276,276,339,328,339,286,289,278,327,321,353,329,321,314,391,382,391,391,391,391,379,375,377,341,439,420,368,368,366,352,540,333,494,515,515,513,915,906,4133,2214,1835,1835]} 1. d4 {[%emt 0:0:3]} Nf6 {[%emt 0:1:1]} 2. c4 {[%emt 0:0:7]} e6 {[%emt 0:0:10]} 3. Nf3 {[%emt 0:0:5]} d5 {[%emt 0:0:7]} 4. Nc3 {[%emt 0:0:5]} Nbd7 {[%emt 0:0:8]} 5. Bf4 {[%emt 0:0:59]} Bb4 {[%emt 0:0:25]} 6. cxd5 {[%emt 0:2:43]} exd5 {[%emt 0:0:7]} 7. e3 {[%emt 0:3:23]} Ne4 {[%emt 0:0:50] D35: Queen's Gambit Declined: Exchange Variation.} 8. Qc2 {[%emt 0:0:12]} g5 {[%emt 0:0:36]} 9. Bg3 {[%emt 0:0:11]} h5 {[%emt 0:1:22] The position is equal.} 10. Bd3 {[%emt 0:6:50]} h4 {[%emt 0:4:55]} 11. Bxe4 {[%emt 0:1:17]} dxe4 {[%emt 0:0:11]} 12. Qxe4+ {[%emt 0:0:10]} Kf8 {[%emt 0:0:14]} 13. Be5 {[%emt 0:1:14]} f6 {[%emt 0:0:10]} 14. Nxg5 {[%emt 0:11:14]} (14. d5 $2 Qe7 15. O-O-O (15. d6 $2 Bxc3+ 16. bxc3 cxd6 $19 )Nxe5 $19 (15... fxe5 $2 16. Nxg5 Nf6 17. Qd3 $19 ))Bxc3+ {[%emt 0:1:40] Black sacrificed a pawn} 15. bxc3 {[%emt 0:0:9]} Nxe5 {[%emt 0:0:5]} 16. dxe5 {[%emt 0:0:36]} fxg5 {[%emt 0:0:6]} 17. f4 $40 {[%emt 0:0:15][%mdl 128] White is up to no good.} h3 {[%emt 0:21:34]} 18. Rd1 $5 $146 {[%emt 0:11:31][%mdl 8] An interesting novelty.} ({Predecessor:} 18. g3 Qd7 19. f5 Qc6 20. Qxc6 bxc6 21. Ke2 Ke7 22. e4 Ba6+ 23. Kf3 {0-1 Schulenberg,H (2174)-Luca,A (2203) Mostert mem WS op-4 email 2006} )Qe7 {[%emt 0:31:15]} 19. g3 {[%emt 0:5:9] [#]} gxf4 {[%emt 0:5:11]} 20. O-O {[%emt 0:2:40]} Rh6 {[%emt 0:5:53] Prevents Qg6} 21. Rxf4+ {[%emt 0:7:1]} Kg8 {[%emt 0:8:23]} (21... Kg7 $1 $11 )22. Rdf1 $14 {[%emt 0:3:9]} Bd7 {[%emt 0:0:20] White stays focused until the end.} ({Better is} 22... Be6 $14 23. Rf6 Qh7 (23... Rxf6 24. Rxf6 Qh7 25. Qxh7+ Kxh7 26. Rxe6 $18 )24. Qxh7+ Kxh7 25. Rxh6+ Kxh6 26. Rf6+ Kg5 27. Rxe6 Rd8 )23. Rf7 $18 {[%emt 0:8:11]} Qxf7 {[%emt 0:4:51]} 24. Rxf7 {[%emt 0:0:27] White attacks} Kxf7 {[%emt 0:0:6]} 25. Qf4+ {[%emt 0:0:6]} Kg7 {[%emt 0:1:22][%cal Bf7g7,Bg7h7,Bh7g8,Bg8h8][%mdl 32] [#] Threatens to win with ...Rf8.} 26. Qg5+ {[%emt 0:0:23]} Kh7 {[%emt 0:0:7]} 27. Qe7+ {[%emt 0:0:5]} Kg8 {[%emt 0:0:16]} 28. Qxd7 {[%emt 0:0:9][%mdl 4096] Endgame KQ-KRR} Rf8 {[%emt 0:0:47] Prevents e6} 29. Qg4+ {[%emt 0:1:11]} ({Stronger than} 29. Qxc7 Rb6 30. Qc4+ Rf7 $11 )Kh8 {[%emt 0:2:21]} 30. a4 {[%emt 0:4:36]} a5 {[%emt 0:1:34]} (30... b6 31. Qd7 Rh7 )31. Qg5 {[%emt 0:2:13]} Rh7 {[%emt 0:9:21]} 32. e6 {[%emt 0:0:41]} Re8 {[%emt 0:0:3]} 33. Qxa5 {[%emt 0:2:12]} b6 {[%emt 0:0:32]} 34. Qe5+ {[%emt 0:0:51]} Kg8 {[%emt 0:0:1]} 35. Qg5+ {[%emt 0:0:19]} Rg7 {[%emt 0:0:15]} 36. Qf5 {[%emt 0:0:7]} Rge7 {[%emt 0:0:3]} 37. Qg4+ {[%emt 0:0:6]} (37. Qxh3 Rxe6 (37... Ra8 $2 38. Qg4+ Rg7 39. Qh5 $18 )38. Qg4+ Kh8 39. Qh5+ Kg7 )Kf8 {[%emt 0:1:4]} 38. Qxh3 {[%emt 0:0:3][%cal Rh3h8]} Rxe6 {[%emt 0:0:3]} 39. Kf2 {[%emt 0:0:5]} (39. Qh8+ Ke7 40. Qd4 Rd6 $14 )R8e7 {[%emt 0:1:7]} 40. Qh8+ {[%emt 0:0:0]} Kf7 {[%emt 0:0:0]} 41. g4 {[%emt 0:2:17]} Re4 {[%emt 0:2:15]} 42. Qh5+ {[%emt 0:1:32]} Kg7 {[%emt 0:2:24]} 43. Qg5+ {[%emt 0:0:22]} Kf7 {[%emt 0:3:51]} 44. Kf3 {[%emt 0:4:34] Hoping for Qf5+.} Rxa4 {[%emt 0:1:18]} 45. h4 {[%emt 0:1:33][%cal Bh2h4,Bh4h5,Bh5h6][%mdl 32]} Ra5 {[%emt 0:0:24]} 46. Qh6 {[%emt 0:0:29]} Rae5 {[%emt 0:0:56]} 47. Qh7+ {[%emt 0:1:19]} Kf8 {[%emt 0:0:15]} (47... Ke8 {was worth a try.} 48. Qg8+ Kd7 )48. Qh8+ {[%emt 0:0:12]} Kf7 {[%emt 0:0:2]} 49. e4 {[%emt 0:0:30] White is clearly winning.} b5 {[%emt 0:1:13]} 50. h5 {[%emt 0:1:25]} c5 {[%emt 0:1:29]} (50... Rg5 $142 51. Kf4 Rg8 52. Qh7+ Rg7 53. Qf5+ Kg8 )51. h6 {[%emt 0:1:37]} Rg5 {[%emt 0:1:11]} 52. Qd8 {[%emt 0:0:16]} Rg8 {[%emt 0:0:38]} 53. Qd5+ {[%emt 0:0:5] Weighted Error Value: White=0.23 (precise) /Black=0.49   Mistake:       	---       	Black=5      Inaccurate:     	White=3     	Black=2      OK:         	White=2     	Black=3      Best:        	---       	Black=1} 1-0

[Event "FIDE Candidates 2026"]
[White "Giri,Anish"]
[Black "Nakamura,Hikaru"]
[Site "Agios Georgios Pegeia"]
[Round "10.2"]
[Annotator "TA"]
[Result "1/2-1/2"]
[Date "2026.04.09"]
[WhiteElo "2753"]
[BlackElo "2810"]
[PlyCount "72"]
[TimeControl "60"]

{[%evp 9,72,18,20,20,16,16,25,25,21,18,24,21,26,10,14,12,12,9,9,6,5,0,11,-1,3,0,0,0,0,-3,0,-9,4,0,18,7,17,0,0,0,0,0,0,0,0,0,0,0,0,0,0,0,0,0,0,0,0,0,0,0,0,0,0,0,0]} 1. c4 {[%emt 0:0:4]} e6 {[%emt 0:0:14]} 2. Nc3 {[%emt 0:0:8]} d5 {[%emt 0:0:7]} 3. d4 {[%emt 0:0:4]} h6 {[%emt 0:0:20]} 4. cxd5 {[%emt 0:0:26]} exd5 {[%emt 0:0:5]} 5. Bf4 {[%emt 0:0:4]} c6 {[%emt 0:0:14]} 6. e3 {[%emt 0:0:5] D31: Queen's Gambit Declined: Semi-Slav without ...Nf6 (+ Marshall Gambit and Noteboom) and Exchange Variation lines without ...Nf6.} Bd6 {[%emt 0:0:26]} 7. Nge2 $146 {[%emt 0:0:38]} ({Predecessor:} 7. Bg3 Nf6 8. Bd3 O-O 9. Nge2 Re8 10. Qc2 Bg4 11. Nf4 Nh5 12. Nxh5 Bxh5 13. Qb3 {1-0 Sevian,S (2694)-Svane,R (2625) Titled Tuesday intern op 08th Apr Late blitz 2025 (5)} )Na6 {[%emt 0:1:24]} 8. Bxd6 {[%emt 0:4:49] White has an edge.} Qxd6 {[%emt 0:0:10]} 9. Ng3 {[%emt 0:0:33]} Nc7 {[%emt 0:0:12]} 10. Bd3 {[%emt 0:0:10]} Nf6 {[%emt 0:0:6]} 11. h3 {[%emt 0:4:42]} Bd7 {[%emt 0:1:7] The position is equal.} 12. Qb3 {[%emt 0:2:10]} b6 {[%emt 0:9:47]} 13. O-O {[%emt 0:4:36]} O-O {[%emt 0:0:37]} 14. Rad1 {[%emt 0:6:27]} Rfe8 {[%emt 0:3:17]} 15. Rfe1 {[%emt 0:0:6]} Rad8 {[%emt 0:4:19]} 16. Bb1 {[%emt 0:3:35]} Ne6 {[%emt 0:3:19]} 17. e4 {[%emt 0:5:36]} dxe4 {[%emt 0:6:7]} 18. Ncxe4 {[%emt 0:0:34]} Nxe4 {[%emt 0:0:6]} 19. Nxe4 {[%emt 0:0:3]} Qb8 {[%emt 0:5:24]} 20. Qc2 {[%emt 0:6:42]} Nf8 {[%emt 0:25:25]} 21. Re3 {[%emt 0:3:49][%cal Oe4f6] [#] Strongly threatening Nf6+!.} Kh8 {[%emt 0:14:30]} 22. a3 {[%emt 0:8:16]} Re7 {[%emt 0:3:20]} 23. Nc5 {[%emt 0:8:26]} Rxe3 {[%emt 0:1:22]} 24. Nxd7 {[%emt 0:0:3]} Rxd7 {[%emt 0:0:5]} 25. fxe3 {[%emt 0:0:3]} c5 {[%emt 0:0:52]} 26. dxc5 {[%emt 0:9:32]} Rxd1+ {[%emt 0:0:5]} 27. Qxd1 {[%emt 0:0:3]} bxc5 $11 {[%emt 0:0:4][%mdl 4096] Endgame KQB-KQN} 28. Ba2 {[%emt 0:11:15]} Qxb2 {[%emt 0:3:48]} 29. Bxf7 {[%emt 0:0:9]} Qxa3 {[%emt 0:0:47]} 30. Qd6 {[%emt 0:1:24]} Qxe3+ {[%emt 0:0:0]} 31. Kh2 {[%emt 0:4:31]} Nd7 {[%emt 0:0:0]} 32. Qxd7 {[%emt 0:0:8]} Qe5+ {[%emt 0:0:2]} 33. Kh1 {[%emt 0:0:9] [#]} (33. Kg1 $5 Qe1+ $8 34. Kh2 Qe5+ 35. Kg1 $11 )Qe1+ {[%emt 0:0:3]} 34. Kh2 {[%emt 0:0:1]} Qe5+ {[%emt 0:0:4]} 35. Kh1 {[%emt 0:0:1]} (35. Kg1 $5 Qe1+ $8 36. Kh2 Qe5+ $11 )Qe1+ {[%emt 0:0:6]} 36. Kh2 {[%emt 0:0:1] Threatening mate with Qc8+.} Qe5+ {[%emt 0:0:6] A balanced but interesting game.   Weighted Error Value: White=0.03 (flawless) /Black=0.03 (flawless)   OK:         	White=7     	Black=7      Best:        	White=1     	Black=3} 1/2-1/2

[Event "FIDE Candidates 2026"]
[White "Esipenko,Andrey"]
[Black "Bluebaum,Matthias"]
[Site "Agios Georgios Pegeia"]
[Round "10.3"]
[Annotator "TA"]
[Result "1/2-1/2"]
[Date "2026.04.09"]
[WhiteElo "2698"]
[BlackElo "2698"]
[PlyCount "80"]
[TimeControl "60"]

{[%evp 9,80,8,8,-8,-8,0,0,0,0,0,18,14,15,14,18,27,28,22,18,17,18,18,32,21,19,19,28,23,23,23,22,22,27,19,27,0,0,2,2,0,4,1,6,2,2,0,0,0,0,0,0,0,0,-8,0,0,0,0,0,0,0,0,0,0,0,0,0,0,0,0,0,0,0]} 1. e4 {[%emt 0:0:4]} e5 {[%emt 0:0:7]} 2. Nf3 {[%emt 0:0:7]} Nf6 {[%emt 0:0:5]} 3. Nxe5 {[%emt 0:0:14]} d6 {[%emt 0:0:6]} 4. Nc4 {[%emt 0:0:11]} Nxe4 {[%emt 0:0:8]} 5. Qe2 {[%emt 0:0:8]} Qe7 {[%emt 0:0:8]} 6. d4 {[%emt 0:0:9] C42: Petroff Defence: 3 Nxe5 and unusual White 3rd moves.} Nc6 {[%emt 0:5:53]} 7. c3 {[%emt 0:0:22]} d5 {[%emt 0:5:8]} 8. Ne3 {[%emt 0:0:8]} Be6 {[%emt 0:1:16]} 9. Nd2 {[%emt 0:0:10]} f5 {[%emt 0:8:43]} 10. Nxe4 {[%emt 0:1:8]} fxe4 {[%emt 0:0:15]} 11. f3 $146 {[%emt 0:0:9]} ({Predecessor:} 11. Qb5 Qd6 12. Qa4 Be7 13. Bb5 O-O 14. Bxc6 bxc6 15. b4 Qf4 16. Qc2 Qh4 17. Qe2 {½-½ Kroencke,M (2034)-Welsch,D (1794) Erfurt op Seniors 29th 2019 (2)} )exf3 {[%emt 0:0:58]} 12. Qxf3 {[%emt 0:0:16]} O-O-O {[%emt 0:3:3]} 13. Bd3 {[%emt 0:0:28]} Qd7 {[%emt 0:3:8]} 14. O-O {[%emt 0:9:23]} g6 {[%emt 0:5:33]} 15. Nc2 {[%emt 0:15:50]} Bg7 {[%emt 0:4:38]} 16. Bg5 {[%emt 0:10:44]} Rdf8 {[%emt 0:4:13]} 17. Qg3 {[%emt 0:0:17]} Rxf1+ {[%emt 0:9:12]} 18. Rxf1 {[%emt 0:0:7]} Rf8 {[%emt 0:0:6]} 19. Qh4 {[%emt 0:25:30]} Rxf1+ {[%emt 0:3:30]} 20. Bxf1 {[%emt 0:0:15]} Bf8 {[%emt 0:3:13]} 21. Ne3 {[%emt 0:2:5]} Qf7 {[%emt 0:8:53]} 22. Qf2 {[%emt 0:6:55]} Qxf2+ {[%emt 0:4:48] The position is equal.} 23. Kxf2 {[%emt 0:0:7]} Nd8 {[%emt 0:0:21]} 24. Bd3 {[%emt 0:6:6]} Nf7 {[%emt 0:2:12]} 25. Bf4 {[%emt 0:0:33]} Kd7 {[%emt 0:3:20]} 26. h4 {[%emt 0:0:54]} c5 {[%emt 0:4:31]} 27. Nc2 {[%emt 0:1:30]} c4 {[%emt 0:2:13]} 28. Be2 {[%emt 0:0:33]} Be7 {[%emt 0:0:14]} 29. g3 {[%emt 0:2:35]} g5 {[%emt 0:0:47]} 30. hxg5 {[%emt 0:0:12]} Nxg5 {[%emt 0:0:9]} 31. Ke3 {[%emt 0:12:7]} Bf5 {[%emt 0:2:10]} 32. Ne1 {[%emt 0:1:27]} a6 {[%emt 0:5:40]} 33. Nf3 {[%emt 0:1:38]} Nxf3 {[%emt 0:1:0]} 34. Bxf3 $11 {[%emt 0:0:6][%mdl 4096] Endgame KBB-KBB} Ke6 {[%emt 0:0:7]} 35. a3 {[%emt 0:0:22]} b5 {[%emt 0:0:37]} 36. Bc7 {[%emt 0:0:18]} Bg5+ {[%emt 0:0:8]} 37. Bf4 {[%emt 0:0:4]} Be7 {[%emt 0:1:8]} 38. Bc7 {[%emt 0:0:10]} Bg5+ {[%emt 0:0:31]} 39. Bf4 {[%emt 0:0:7]} Be7 {[%emt 0:0:22]} 40. Bc7 {[%emt 0:0:0]} Bg5+ {[%emt 0:0:0] Not much happened in this game.   Weighted Error Value: White=0.02 (flawless) /Black=0.02 (flawless)   OK:         	White=11    	Black=12     Best:        	White=2     	---} 1/2-1/2

[Event "FIDE Candidates 2026"]
[White "Wei,Yi"]
[Black "Caruana,Fabiano"]
[Site "Agios Georgios Pegeia"]
[Round "10.4"]
[Annotator "TA"]
[Result "1/2-1/2"]
[Date "2026.04.09"]
[WhiteElo "2754"]
[BlackElo "2795"]
[PlyCount "78"]
[TimeControl "60"]

{[%evp 10,77,27,11,29,34,25,7,41,20,33,20,20,20,29,29,34,26,31,11,12,12,3,10,14,16,9,0,0,0,21,0,0,0,0,0,11,8,33,37,36,18,57,0,0,0,8,8,8,8,8,-2,-3,-1,-1,-6,18,18,18,18,27,27,27,8,18,0,27,0,18,0]} 1. e4 {[%emt 0:0:5]} e6 {[%emt 0:0:5]} 2. d4 {[%emt 0:0:9]} d5 {[%emt 0:0:4]} 3. Nc3 {[%emt 0:0:8]} Bb4 {[%emt 0:0:6]} 4. Nge2 {[%emt 0:0:45]} Ne7 {[%emt 0:0:57]} 5. a3 {[%emt 0:7:51]} Bxc3+ {[%emt 0:0:40]} 6. Nxc3 {[%emt 0:0:6]} Nbc6 {[%emt 0:0:3] C15: French: 3 Nc3 Bb4: Unusual White 4th moves.} 7. Bf4 {[%emt 0:8:48]} dxe4 {[%emt 0:8:40]} 8. Qd2 {[%emt 0:1:37]} e5 {[%emt 0:17:50]} 9. dxe5 {[%emt 0:11:2]} Qxd2+ {[%emt 0:0:21]} 10. Bxd2 {[%emt 0:8:36]} Bf5 {[%emt 0:0:6]} 11. O-O-O {[%emt 0:0:48]} O-O-O {[%emt 0:5:51]} 12. Re1 {[%emt 0:0:56]} Nxe5 {[%emt 0:0:7]} 13. Nxe4 {[%emt 0:0:39]} f6 {[%emt 0:1:12]} 14. Ng3 {[%emt 0:26:48]} Bg6 {[%emt 0:2:41][%cal Bf5g6,Bg6f7,Bf7d5,Bd5c4,Bc4e2][%mdl 32]} 15. f4 $146 {[%emt 0:8:26]} ({Predecessor:} 15. b4 Nf5 16. Nxf5 Bxf5 17. Bc3 Nc6 18. g4 Bg6 19. Bc4 Rhe8 20. Be6+ Kb8 21. f4 {1-0 Kolla,B (1966)-Bivor,A (2140) Bhubaneswar op 16th 2025 (6)} )N5c6 {[%emt 0:0:20]} 16. Bc4 {[%emt 0:0:11]} Nd5 {[%emt 0:7:40]} 17. Rhf1 {[%emt 0:6:5]} h5 {[%emt 0:8:51]} 18. f5 {[%emt 0:4:55]} Bf7 {[%emt 0:1:36]} 19. Ne4 {[%emt 0:0:28]} h4 {[%emt 0:10:22]} 20. g4 {[%emt 0:7:41]} hxg3 {[%emt 0:1:15]} 21. hxg3 {[%emt 0:0:4]} Ne5 {[%emt 0:1:41]} 22. Be2 {[%emt 0:0:51]} Ne7 {[%emt 0:2:50]} 23. g4 {[%emt 0:4:44]} Bd5 {[%emt 0:6:23]} (23... Bc4 $5 )24. Nc5 {[%emt 0:4:9]} N7c6 {[%emt 0:7:21]} 25. Bc3 {[%emt 0:4:18] Dodges Nd4} Rh2 {[%emt 0:15:21][%cal Oh2e2]} 26. Nd3 {[%emt 0:3:39]} (26. Ne6 $14 Bxe6 27. fxe6 )Bc4 $11 {[%emt 0:4:24]} 27. Nxe5 {[%emt 0:0:6]} Bxe2 {[%emt 0:0:5]} 28. Nxc6 {[%emt 0:0:8]} bxc6 {[%emt 0:0:3]} 29. Rg1 {[%emt 0:0:21]} Rd5 {[%emt 0:0:37]} 30. g5 {[%emt 0:2:19]} Rxf5 {[%emt 0:0:13]} 31. gxf6 {[%emt 0:0:4]} gxf6 {[%emt 0:0:3]} 32. Rg6 {[%emt 0:0:22]} Bf3 {[%emt 0:1:33]} 33. Rxf6 {[%emt 0:0:12]} Rxf6 {[%emt 0:0:2]} 34. Bxf6 {[%emt 0:0:2]} Rh1 {[%emt 0:0:5]} 35. Rxh1 {[%emt 0:0:2]} Bxh1 {[%emt 0:0:3] KB-KB} 36. Kb1 {[%emt 0:0:3]} Bg2 {[%emt 0:0:3]} 37. Kc1 {[%emt 0:0:1]} Bh1 {[%emt 0:0:4]} 38. Kb1 {[%emt 0:0:2]} Bg2 {[%emt 0:0:4]} 39. Kc1 {[%emt 0:0:2]} Bh1 {[%emt 0:0:9] Weighted Error Value: White=0.09 (flawless) /Black=0.07 (flawless)   Mistake:       	White=1     	---        Inaccurate:     	---       	Black=2      OK:         	White=7     	Black=6} 1/2-1/2